Cogmind - Beta 16 @@@ ROGUE MODE // 2026.01.03 @ 22:04:33 Player: mm79 Result: Self-destructed Performance ------------- Evolutions (1) 500 Regions Visited (2) 400 Robots Destroyed (47) 235 Value Destroyed (818) 818 Prototype IDs (1) 20 Alien Tech Used (0) 0 Bonus (4) 4 TOTAL SCORE: 1977 Bonus ------- High Alert Combat Kills 4 Cogmind --------- Core Integrity 351/400 Matter 289/300 Energy 280/280 System Corruption 0% Temperature Cool (0) Movement Rolling (95) Ox1 Location -9/Materials Parts ------- > --- POWER (1) -------- Cooled Ion Engine > --- PROPULSION (2) --- Armored Wheel Armored Wheel > --- UTILITY (4) ------ Heat Sink Large Storage Unit Seismic Detector Medium Armor Plating > --- WEAPON (2) ------- Heavy Assault Rifle Flail > --- INVENTORY (15) --- Cooled Ion Engine Cooled Ion Engine Carbon-fiber Leg Carbon-fiber Leg Carbon-fiber Leg Armored Wheel Armored Wheel Armored Wheel Improved Hover Unit Sensor Array Medium Armor Plating Particle Cannon Particle Cannon Heavy Assault Rifle Plasma Cutter Peak State ------------ > --- POWER ------------ Cooled Ion Engine > --- PROPULSION ------- Armored Wheel Armored Wheel > --- UTILITY ---------- Heat Sink Large Storage Unit Medium Armor Plating Medium Armor Plating > --- WEAPON ----------- Particle Cannon Heavy Assault Rifle > --- INVENTORY -------- Cooled Ion Engine Cooled Ion Engine Carbon-fiber Leg Carbon-fiber Leg Carbon-fiber Leg Armored Wheel Armored Wheel Armored Wheel Armored Wheel Sensor Array Seismic Detector Particle Cannon Heavy Assault Rifle Plasma Cutter Flail [Rating: 20] Favorites ----------- Power Cooled Ion Engine Engine Cooled Ion Engine Propulsion Armored Wheel Wheel Armored Wheel Utility Large Storage Unit Device Seismic Detector Storage Large Storage Unit Protection Medium Armor Plating Weapon Particle Cannon Energy Gun Small Laser Energy Cannon Particle Cannon Ballistic Gun Heavy Assault Rifle Special Weapon Mining Laser Impact Weapon Flail Build | -11 -10 -9 ------- Run | Yrd Mat Mat Slots Evolved 2 | . . 2 Power . | . . . Propulsion . | . . . Utility 2 | . . 2 Weapon . | . . . Parts Attached 32 | 7 9 16 Power 4 | 1 1 2 Engine 4 | 1 1 2 Core . | . . . Reactor . | . . . Propulsion 5 | 2 2 1 Treads . | . . . Leg . | . . . Wheel 5 | 2 2 1 Hover . | . . . Flight . | . . . Utility 11 | 2 3 6 Device 4 | 1 . 3 Storage 2 | 1 1 . Processor . | . . . Hackware . | . . . Protection 5 | . 2 3 Artifact . | . . . Weapon 12 | 2 3 7 Energy Gun 2 | 2 . . Energy Cannon 3 | . 2 1 Ballistic Gun 4 | . 1 3 Ballistic Cannon . | . . . Launcher . | . . . Special Weapon 2 | . . 2 Impact Weapon 1 | . . 1 Slashing Weapon . | . . . Piercing Weapon . | . . . Special Melee Weapon . | . . . Unidentified Prototypes 1 | . . 1 Parts Lost . | . . . Power . | . . . Propulsion . | . . . Utility . | . . . Weapon . | . . . Highest Loss Streak . | . . . To Critical Strikes . | . . . Average Backups 14 | 1 14 14 Power 1 | . 1 2 Propulsion 6 | . 6 6 Utility 2 | . 2 1 Weapon 3 | . 3 3 Tool/Special . | . . . Unused Backups 27 | . 5 22 Power 5 | . . 5 Propulsion 16 | . 3 13 Utility 1 | . 1 . Weapon 4 | . 1 3 Tool/Special 1 | . . 1 Average Slot Usage (%) 99 | . 100 99 Engine 12 | . 14 11 Wheel 24 | . 28 22 Device 22 | . 12 28 Storage 12 | . 14 11 Protection 3 | . 1 4 Energy Gun 1 | . 4 . Energy Cannon 11 | . 13 10 Ballistic Gun 8 | . 10 6 Impact Weapon 2 | . . 3 Peak Build Rating 20 | 7 12 20 Average Rating 14 | 5 10 17 On Entrance 6 | . 7 11 Avg Prop Armor Cover (%) . | . . . Naked Turns . | . . . Heaviest Build 50 | 14 34 50 Greatest Support 24 | 20 24 24 Greatest Overweight (x) 2 | . 1 2 Average Overweight (x) 1 | . . 1 Largest Inventory Capacity 15 | 8 15 15 Average Capacity 14 | 7 14 15 Most Carried 15 | 5 15 15 Average Carried 14 | 2 14 14 Final Capacity 15 | 8 15 15 Final Carried 15 | 5 15 15 Class Distribution -------------------- 100% | Mutant Dominant Class ---------------- Mutant | -10/Materials Mutant | -9/Materials Resources | -11 -10 -9 ----------- Run | Yrd Mat Mat Matter Collected 1133 | 227 289 617 Remotely . | . . . Salvage Created 1319 | 10 355 954 Parts 103 | 4 23 76 Haulers Intercepted 4 | . 2 2 Recyclers Shooed 1 | 1 . . Parts Field Recycled . | . . . Retrieved Matter . | . . . Parts Self-Destructed . | . . . Prevented . | . . . Parts Restored . | . . . Kills | -11 -10 -9 ------- Run | Yrd Mat Mat Combat Hostiles Destroyed 31 | . 9 22 Guns 11 | . 5 6 Cannons 19 | . 4 15 Classes Destroyed 8 | 1 5 2 Worker 4 | . . 4 Tunneler 1 | 1 . . Hauler 4 | . 2 2 Operator 2 | . 1 1 Watcher 5 | . 1 4 Swarmer 18 | . 6 12 Grunt 8 | . 3 5 Sentry 5 | . . 5 Best Kill Streak 5 | 1 4 5 Combat Bots Only 5 | . 3 5 Max Kills in Single Turn 2 | 1 1 2 Gunslinging . | . . . Exploded . | . . . Melee . | . . . Uniques/NPCs Destroyed . | . . . Combat | -11 -10 -9 -------- Run | Yrd Mat Mat Hostile Shots Fired 122 | . 36 86 Missed 43 | . 9 34 Hits 79 | . 27 52 Projectile 79 | . 27 52 Critical Strikes 2 | . . 2 Damage Taken 847 | . 284 563 Core 114 | . 65 49 Absorbed by Shields . | . . . Redirected to Shielding 3 | . 3 . Regen/Repaired (Parts) 81 | . . 81 Core Remaining (%) 87 | 100 74 . Volleys Fired 102 | 3 40 59 Largest 2 | 2 2 2 Hottest 108 | 90 108 100 Shots Fired 188 | 6 79 103 Gun 91 | 6 39 46 Cannon 90 | . 40 50 Launcher . | . . . Special 7 | . . 7 Kinetic 78 | . 32 46 Thermal 110 | 6 47 57 Explosive . | . . . Electromagnetic . | . . . Robot Hit Streak 10 | 2 5 10 Robot Miss Streak 6 | 1 3 6 Penetration Max . | . . . Secondary Targets . | . . . Shots Hit Robots 106 | 3 42 61 Core Hits 51 | 2 17 32 Critical Kills . | . . . Critical Parts Destroyed 3 | . . 3 Critical Strikes 3 | . . 3 Smash 3 | . . 3 Melee Attacks 39 | . . 39 Impact 39 | . . 39 Slashing . | . . . Piercing . | . . . Sneak Attacks 4 | . . 4 Combat Hostiles . | . . . Follow-up Attacks . | . . . Damage Inflicted 2178 | 34 701 1443 Guns 640 | 34 288 318 Cannons 1115 | . 413 702 Explosions . | . . . Melee 423 | . . 423 Ramming . | . . . Kinetic 554 | . 236 318 Thermal 1201 | 34 465 702 Explosive . | . . . Electromagnetic . | . . . Impact 423 | . . 423 Slashing . | . . . Piercing . | . . . Highest Corruption . | . . . Average Corruption . | . . . Corruption Purged . | . . . Corruption Blocked . | . . . Overload Shots . | . . . Overflow Damage 241 | . 1 240 Projectiles 2 | . 1 1 Explosions . | . . . Melee 239 | . . 239 Knockbacks 1 | . . 1 Impact 1 | . . 1 Kinetic . | . . . Secondary . | . . . Self-Inflicted Damage . | . . . Shots . | . . . Rammed . | . . . Targets Rammed . | . . . Kicked . | . . . Crushed . | . . . Highest Temperature 252 | 70 252 81 Average Temperature 46 | 42 60 16 Received Heat Transfer 246 | . 54 192 Siege Activations . | . . . Martial Activations . | . . . Shielding Activations . | . . . Robots Disrupted . | . . . Combat Hostiles . | . . . Robots Corrupted 3 | . . 3 Combat Hostiles 1 | . . 1 Parts Fried 3 | . . 3 Impact Corruptions 8 | . . 8 Robots Melted . | . . . Combat Hostiles . | . . . Parts Melted 2 | 1 . 1 Heat Transferred 2210 | 87 865 1258 Parts Sabotaged . | . . . Parts Stolen . | . . . Parts Stripped . | . . . Power Chain Reactions . | . . . Alert | -11 -10 -9 ------- Run | Yrd Mat Mat Maximum Alert Level 2 | . . 2 Low Security (%) 83 | 100 100 73 Level 1 12 | . . 18 Level 2 4 | . . 7 Level 3 . | . . . Level 4 . | . . . Level 5 . | . . . High Security . | . . . Max Security . | . . . Peak Influence 483 | 5 91 483 Initial 31 | . . 31 Average 97 | . 29 136 Influence Increases 1167 | 5 347 815 Destroy 0b10 Robot/C 620 | . 180 440 Destroy 0b10 Robot/NC 80 | 5 20 55 Destroy Leader 168 | . 46 122 Successful Hack 55 | . 23 32 Disable Machine 15 | . 15 . Destroy Structure 34 | . 3 31 Partial Spotted 15 | . . 15 Lose Combat Pursuer 180 | . 60 120 Influence Decreases 698 | 5 273 420 Entered New Map 43 | . . 43 Time Decay 655 | 5 273 377 Squads Dispatched 7 | . 3 4 Investigation 2 | . 2 . Extermination . | . . . Reinforcement 4 | . 1 3 Assault 1 | . . 1 Garrison . | . . . Intercept . | . . . Searches Triggered . | . . . Construction Impeded . | . . . Haulers Reinforced . | . . . Active Scanning Responses . | . . . Cargo Convoy Interrupts . | . . . Stealth | -11 -10 -9 --------- Run | Yrd Mat Mat Distress Signals 4 | . 3 1 Communications Jammed . | . . . Distress Signals . | . . . Times Spotted 66 | . 18 48 Peak Tracking Total 9 | . 3 9 Tactical Retreats 7 | . 3 4 Traps | -11 -10 -9 ------- Run | Yrd Mat Mat Traps Triggered 3 | . 3 . Indirectly . | . . . Trap Hack Attempts . | . . . Triggered . | . . . Disarmed . | . . . Reprogrammed 6 | . 6 . Reused . | . . . Traps Extracted . | . . . Installed . | . . . Triggered . | . . . Machines | -11 -10 -9 ---------- Run | Yrd Mat Mat Machines Disabled 1 | . 1 . Max in Single Turn 1 | . 1 . Machines Repaired . | . . . Machines Dismantled . | . . . Machines Sabotaged . | . . . Overloaded Fab Kills . | . . . Hacking | -11 -10 -9 --------- Run | Yrd Mat Mat Machines Accessed 16 | . 6 10 Terminals 9 | . 4 5 Fabricators . | . . . Repair Stations 1 | . . 1 Recycling Units 4 | . 2 2 Scanalyzers 2 | . . 2 Garrison Access . | . . . Total Hacks 54 | . 23 31 Successful 33 | . 14 19 Failed 20 | . 9 11 Catastrophic 3 | . 2 1 Database Lockouts 1 | . . 1 Manual 32 | . 15 17 Terminals 34 | . 18 16 Fabricators . | . . . Repair Stations 3 | . . 3 Recycling Units 13 | . 5 8 Scanalyzers 4 | . . 4 Garrison Access . | . . . Terminal Hacks 8 | . 4 4 Robot Analysis 1 | . . 1 Emergency Access Points 1 | . 1 . Locate Traps 4 | . 1 3 Reprogram Traps 1 | . 1 . Surveillance Status 1 | . 1 . Fabricator Hacks . | . . . Repair Station Hacks 2 | . . 2 Scan Component 1 | . . 1 Repair 1 | . . 1 Recycling Unit Hacks 4 | . 1 3 Report Inventory 3 | . 1 2 Retrieve Components 1 | . . 1 Scanalyzer 2 | . . 2 Retrieve Study 2 | . . 2 Garrison Access Hacks . | . . . Unauthorized Hacks 17 | . 9 8 Terminals 13 | . 7 6 Track 2 | . 1 1 Botnet 2 | . 2 . Operators 2 | . 1 1 Skim 7 | . 3 4 Fabricators . | . . . Repair Stations . | . . . Recycling Units 4 | . 2 2 Reject 4 | . 2 2 Scanalyzers . | . . . Garrison Access . | . . . Data Cores Recovered . | . . . Used . | . . . Hacking Detections 14 | . 5 9 Full Trace Events 1 | . 1 . Feedback Events . | . . . Feedback Blocked . | . . . Robot Schematics Acquired . | . . . Robots Built . | . . . Authchips . | . . . Time . | . . . Total Robot Build Rating . | . . . Part Schematics Acquired . | . . . Parts Built . | . . . Authchips . | . . . Time . | . . . Total Part Build Rating . | . . . Part Studies Acquired 2 | . . 2 Parts Repaired 1 | . . 1 Time 32 | . . 32 Parts Recycled . | . . . Recycled Matter . | . . . Retrieved Matter . | . . . Retrieved Components 2 | . . 2 Parts Scanalyzed . | . . . Part Schematics Acquired . | . . . Parts Damaged . | . . . Bothacking | -11 -10 -9 ------------ Run | Yrd Mat Mat Used RIF Installer . | . . . Robots Hacked . | . . . Non-combat . | . . . Combat . | . . . Robot Hacks Applied . | . . . Relay Couplers Released . | . . . Fabnet Peak Effective % . | . . . Robots Rewired . | . . . Allies Hacked . | . . . Hacks Repelled . | . . . Allies | -11 -10 -9 -------- Run | Yrd Mat Mat Total Allies . | . . . Largest Group . | . . . Highest-Rated Group . | . . . Highest-Rated Ally . | . . . Total Orders . | . . . Ally Attacks . | . . . Total Damage . | . . . Kills . | . . . Allies Corrupted . | . . . Allies Melted . | . . . Intel | -11 -10 -9 ------- Run | Yrd Mat Mat Active Infowar (turns) 2290 | 23 778 1489 Sensors 1163 | . . 1163 Seismic 2284 | 23 778 1483 Robot Analysis Total 1 | . . 1 Derelict Logs Recovered . | . . . Drone Launches . | . . . Drone Recoveries . | . . . Exploration | -11 -10 -9 ------------- Run | Yrd Mat Mat Turns Passed 2643 | 64 879 1700 Spaces Moved 1705 | 48 609 1048 Core 6 | 6 . . Treads . | . . . Legs . | . . . Wheels 1699 | 42 609 1048 Hover . | . . . Flight . | . . . Fastest Speed 50 | 50 80 95 Average Speed 96 | 76 96 97 Slowest Speed 110 | 80 105 110 Overloaded Moves . | . . . Propulsion Burnouts . | . . . Robots Hopped . | . . . Potential Cave-ins . | . . . Cave-ins Triggered . | . . . Exploration Rate (%) 55 | 3 86 78 Regions Visited 2 Branch Regions . Pre-discovered Areas . | . . . Known Exits Taken . | . . . Unknown Exits Taken 2 | 1 1 . Scrap Searched . | . . . Spaces Dug 27 | . . 27 Terrain Destroyed 28 | . . 28 Melee 22 | . . 22 Projectile 6 | . . 6 AOE . | . . . Terrain Rammed . | . . . Walls Destroyed . | . . . Machines Disabled . | . . . Actions | -11 -10 -9 --------- Run | Yrd Mat Mat Total 2441 | 65 826 1550 Wait 440 | 3 124 313 Move 1703 | 47 608 1048 Hop . | . . . Pick Up 46 | 5 23 18 Fast Attach 13 | 7 2 4 Attach 3 | . 1 2 Detach 2 | . 1 1 Swap 55 | . 12 43 Drop 38 | . 15 23 Fire 102 | 3 40 59 Melee 39 | . . 39 Ram . | . . . Kick . | . . . Crush . | . . . Escape Stasis . | . . . Rewire . | . . . Trap . | . . . Miscellaneous . | . . . Route ------- -11/Scrapyard -10/Materials (discovered 4 exits: *Mat x2 / [*Min x2]) -9/Materials (discovered 3 exits: [*Mat] / [*Min x2]) History --------- Turn | Location | Event 12 | -11/Scrapyard | Discovered new exit (range 15) 65 | -11/Scrapyard | Entered Materials 163 | -10/Materials | Discovered new exit (range 14) 320 | -10/Materials | Build established: Mutant 462 | -10/Materials | Discovered new exit (range 16) 624 | -10/Materials | Discovered new exit (range 9) 665 | -10/Materials | Derelicts attacked the area 902 | -10/Materials | Discovered new exit (range 3) 944 | -10/Materials | Entered another Materials area 944 | -9/Materials | Evolved 2 slots: Utility x2 1679 | -9/Materials | Discovered new exit (range 10) 1768 | -9/Materials | Discovered new exit (range 15) 1927 | -9/Materials | Repaired Med. Armor Plating 2029 | -9/Materials | Discovered new exit (range 15) 2544 | -9/Materials | First assault squad dispatched 2610 | -9/Materials | Central database locked down 2644 | -9/Materials | Self-destructed Last Messages --------------- 02559_ R-06 Scavenger collects Lgt. Assault Rifle. 02563_ K-01 Serf collects debris. 02565_ T-07 Excavator is excavating. 02596_ C-45 Heavy ARC bursts open, deploying its payload. 02596_ G-47 Trooper unfolds itself. 02596_ B-36 Bruiser unfolds itself. 02596_ G-34 Mercenary unfolds itself. 02596_ M-13 Machinist unfolds itself. 02605_ Dropped Arm. Wheel+. 02606_ Acquired Imp. Hover Unit. 02610_ Connecting with Scanalyzer... 02610_ ALERT: Central database lockdown, local access denied. 02617_ R-06 Scavenger collects Arm. Wheel+. 02633_ Destroyed Heat Sink. 02633_ G-34 Mercenary system corrupted by crushing effect. 02636_ Acquired 12 matter. 02644_ Connecting with Terminal... Map ----- +----------------------------------------------------+ | | | | | | | | | | | | | | | | | | | | | | | | | | | | | | | | | | | | | | | | | | | ????????????????????###############??????????????? | | ????????????????????# #??????????????? | | ????????????????????# """"" #??????????????? | | ????????????????????# ""T"" """ #??????????????? | | ????????????????????# @ """ #???????###### # | | ???????????????????## """ #???????# # | | ???????????????????#Y #???????# ###### | | ???????????????????########s#######?????### ### | | ????????????############# #?????????# # !! | | ???????????? g########### # !! | | ???????????? T % " !! | | ???????????? ##/#/###### # | | ????????????############# # ^*[=^*#?# # | | ????????????????????????## #### ""^!!=#?## ## | | ?????????????????????????# ####^"Y^=[ #??# ##### | | ?????????????????????????# #??#^""[[ ##?# + | | ?????????????????????????# #??# ##?# # """ | | ???????????????????#####?# #?#######"###?# + """ | | ???????????????????# #?# #?# #?# ### """ | | ???????????????????# #?# #?# """ "" #?# #?# | | ???????????????????# #?# #?# """ ""S ###/### | | ???????????????????# #?# #?# """ "" # ## | | ???????????????????# #?# #?# # ###### | | ???????????????????# #?# #?# ]# #????? | | ???????????????????# #?# ### #o #????? | | ??????????????#######+#### ### # #????? | | ????????????+ #######/##### #????? | | ??????????????##### + "#????? | | ???????#######????# ] = #### "%#????? | +----------------------------------------------------+ Best States ------------- Heat Dissipation 38 Energy Generation 14 Energy Capacity 280 Matter Stores 300 Matter Capacity 300 Sight Range 16 Robot Scan Range 14 Terrain Scan Density 10 Armor Coverage 450 Weapon Shielding 33 Evasion (%) 44 Item Schematics ----------------- None Robot Schematics ------------------ None Fabricated ------------ Nothing Repaired ---------- Med. Armor Plating | 32% | -9/Materials Studied --------- Arm. Wheel | -9/Materials | Hacked Hover Unit | -9/Materials | Hacked Alien Tech Used ----------------- None Achievements -------------- None Challenges ------------ None Game ------ Seed AerolevFlakStorage Manual? 0 Play Time 00:59:26 Cumulative 31.1 hours Start 2026.01.03 @ 18:40:01 End 2026.01.03 @ 22:04:33 Sessions 1 Manual Loads 0 Difficulty Rogue Special Mode None Game No. 32 Rogue 32 Adventurer 0 Explorer 0 Win Type - Total 0 Types 0/0/0/0/0/0/0/0/0/0 Lore% 39 Gallery% 37 Achievement% 32 Wizard Run 0 Options --------- Layout 1 ASCII 0 Keyboard 0 Movement Mouse Keybinds 0 Fullscreen 1 Font 20/SmallcapsGlow Map View 54x42 Zoom Use 0% Tactical HUD 1 Map Filters NONE Filters NONE Steam 0 RUN: 88402d40-35ef-4d0d-a310-e1d2fd1717b4